Cogmind - Beta 15 @@@ ROGUE MODE // 2025.08.31 @ 00:54:30 Player: Culibread Result: Self-destructed Performance ------------- Evolutions (2) 1000 Regions Visited (3) 600 Robots Destroyed (25) 125 Value Destroyed (515) 515 Prototype IDs (1) 20 Alien Tech Used (0) 0 Bonus (0) 0 TOTAL SCORE: 2260 Bonus ------- None Cogmind --------- Core Integrity 510/550 Matter 300/300 Energy 78/100 System Corruption 0% Temperature Cool (0) Movement Core (100) Ox1 Location -8/Materials Parts ------- > --- POWER (1) -------- (None) > --- PROPULSION (4) --- (None) > --- UTILITY (4) ------ Medium Storage Unit Weight Redist. System > --- WEAPON (2) ------- Beam Rifle > --- INVENTORY (10) --- Heavy Ion Engine Heavy Ion Engine Hover Unit Heat Sink Small Storage Unit Assault Rifle Peak State ------------ > --- POWER ------------ Heavy Ion Engine > --- PROPULSION ------- Aluminum Leg Aluminum Leg > --- UTILITY ---------- Small Storage Unit Weight Redist. System Light Armor Plating > --- WEAPON ----------- Medium Laser Beam Rifle > --- INVENTORY -------- Ion Engine Heavy Ion Engine Hover Unit Heat Sink Medium Storage Unit Assault Rifle [Rating: 12] Favorites ----------- Power Ion Engine Engine Ion Engine Propulsion Aluminum Leg Treads Light Treads Leg Aluminum Leg Hover Unit Hover Unit Utility Small Storage Unit Device Weight Redist. System Storage Small Storage Unit Protection Light Armor Plating Weapon Medium Laser Energy Gun Medium Laser Ballistic Gun Assault Rifle Build | -11 -10 -9 -8 ------- Run | Yrd Mat Mat Mat Slots Evolved 4 | . . 2 2 Power . | . . . . Propulsion 2 | . . 1 1 Utility 2 | . . 1 1 Weapon . | . . . . Parts Attached 18 | 7 5 5 1 Power 4 | 2 . 1 1 Engine 4 | 2 . 1 1 Core . | . . . . Reactor . | . . . . Propulsion 5 | 2 3 . . Treads 2 | 2 . . . Leg 2 | . 2 . . Wheel . | . . . . Hover 1 | . 1 . . Flight . | . . . . Utility 5 | 1 1 3 . Device 1 | . . 1 . Storage 3 | 1 1 1 . Processor . | . . . . Hackware . | . . . . Protection 1 | . . 1 . Artifact . | . . . . Weapon 4 | 2 1 1 . Energy Gun 3 | 1 1 1 . Energy Cannon . | . . . . Ballistic Gun 1 | 1 . . . Ballistic Cannon . | . . . . Launcher . | . . . . Special Weapon . | . . . . Impact Weapon . | . . . . Slashing Weapon . | . . . . Piercing Weapon . | . . . . Special Melee Weapon . | . . . . Unidentified Prototypes 1 | . . 1 . Parts Lost 4 | . . . 4 Power 1 | . . . 1 Propulsion 2 | . . . 2 Utility . | . . . . Weapon 1 | . . . 1 Highest Loss Streak 3 | . . . 3 To Critical Strikes . | . . . . Average Backups 4 | 1 2 5 6 Power 1 | . 1 2 2 Propulsion . | . . 1 1 Utility . | . . . 2 Weapon 1 | . . 1 1 Tool/Special . | . . . . Unused Backups 1 | . . . 1 Power . | . . . . Propulsion . | . . . . Utility 1 | . . . 1 Weapon . | . . . . Tool/Special . | . . . . Average Slot Usage (%) 81 | . 92 78 66 Engine 11 | . 14 11 9 Treads 10 | . 25 . . Leg 12 | . 2 22 15 Device 2 | . . . 9 Storage 16 | . 21 14 9 Protection 4 | . . 7 6 Energy Gun 21 | . 26 18 17 Ballistic Gun 1 | . 1 3 . Peak Build Rating 12 | 6 7 12 12 Average Rating 7 | 4 6 8 10 On Entrance 6 | . 6 7 12 Naked Turns . | . . . . Heaviest Build 26 | 14 15 26 26 Greatest Support 40 | 40 40 26 26 Greatest Overweight (x) 1 | . 1 . 1 Average Overweight (x) . | . . . . Largest Inventory Capacity 10 | 8 8 10 10 Average Capacity 8 | 7 8 8 10 Most Carried 8 | 5 4 8 6 Average Carried 4 | 1 2 5 6 Final Capacity 10 | 8 8 10 10 Final Carried 6 | 1 4 6 6 Class Distribution -------------------- 100% | Mutant Dominant Class ---------------- Mutant | -10/Materials Mutant | -9/Materials Mutant | -8/Materials Resources | -11 -10 -9 -8 ----------- Run | Yrd Mat Mat Mat Matter Collected 508 | 204 169 90 45 Remotely . | . . . . Salvage Created 701 | . 325 188 188 Parts 42 | . 20 11 11 Haulers Intercepted . | . . . . Recyclers Shooed 1 | . . 1 . Parts Field Recycled . | . . . . Retrieved Matter . | . . . . Parts Self-Destructed . | . . . . Prevented . | . . . . Kills | -11 -10 -9 -8 ------- Run | Yrd Mat Mat Mat Combat Hostiles Destroyed 23 | . 10 6 7 Guns 21 | . 9 5 7 AOE 1 | . 1 . . Classes Destroyed 5 | . 4 1 . Builder 1 | . 1 . . Recycler 1 | . 1 . . Swarmer 14 | . 6 3 5 Grunt 7 | . 4 2 1 Sentry 2 | . . 1 1 Best Kill Streak 7 | . 7 4 5 Combat Bots Only 5 | . 5 4 5 Max Kills in Single Turn 3 | . 3 1 2 Gunslinging 1 | . . . 1 Exploded 1 | . 1 . . Melee . | . . . . Uniques/NPCs Destroyed . | . . . . Combat | -11 -10 -9 -8 -------- Run | Yrd Mat Mat Mat Hostile Shots Fired 112 | . 42 27 43 Missed 22 | . 12 1 9 Hits 90 | . 30 26 34 Projectile 90 | . 30 26 34 Critical Strikes 1 | . . 1 . Damage Taken 1012 | . 388 281 343 Core 263 | . 148 75 40 Absorbed by Shields . | . . . . Core Remaining (%) 73 | 100 40 81 . Volleys Fired 68 | . 26 22 20 Largest 2 | . 2 2 2 Hottest 106 | . 100 100 106 Shots Fired 132 | . 52 44 36 Gun 132 | . 52 44 36 Cannon . | . . . . Launcher . | . . . . Special . | . . . . Kinetic 11 | . . 11 . Thermal 121 | . 52 33 36 Explosive . | . . . . Electromagnetic . | . . . . Robot Hit Streak 16 | . 6 8 16 Robot Miss Streak 7 | . 4 7 1 Penetration Max . | . . . . Secondary Targets 3 | . 2 . 1 Max Gunslinging Chain 1 | . 1 . 1 Shots Hit Robots 83 | . 26 28 29 Core Hits 32 | . 13 8 11 Critical Kills . | . . . . Critical Parts Destroyed . | . . . . Critical Strikes 8 | . 4 2 2 Burn 8 | . 4 2 2 Melee Attacks . | . . . . Impact . | . . . . Slashing . | . . . . Piercing . | . . . . Sneak Attacks . | . . . . Combat Hostiles . | . . . . Follow-up Attacks . | . . . . Damage Inflicted 1553 | . 767 357 429 Guns 1117 | . 351 351 415 Cannons . | . . . . Explosions 407 | . 407 . . Melee . | . . . . Ramming 29 | . 9 6 14 Kinetic 110 | . . 110 . Thermal 1007 | . 351 241 415 Explosive 407 | . 407 . . Electromagnetic . | . . . . Impact . | . . . . Slashing . | . . . . Piercing . | . . . . Highest Corruption . | . . . . Average Corruption . | . . . . Corruption Purged . | . . . . Corruption Blocked . | . . . . Overload Shots . | . . . . Overflow Damage 132 | . 132 . . Projectiles . | . . . . Explosions 132 | . 132 . . Melee . | . . . . Knockbacks . | . . . . Impact . | . . . . Kinetic . | . . . . Secondary . | . . . . Self-Inflicted Damage 100 | . 100 . . Shots 1 | . 1 . . Rammed 2 | . 2 . . Targets Rammed 8 | . 2 3 3 Kicked 6 | . . 3 3 Crushed . | . . . . Highest Temperature 348 | . 348 222 328 Average Temperature 106 | . 117 95 102 Received Heat Transfer 279 | . 78 138 63 Effects 2 | . 1 . 1 Energy Bleed 2 | . 1 . 1 Siege Activations . | . . . . Martial Activations . | . . . . Shielding Activations . | . . . . Robots Disrupted . | . . . . Combat Hostiles . | . . . . Robots Corrupted . | . . . . Combat Hostiles . | . . . . Parts Fried . | . . . . Impact Corruptions . | . . . . Robots Melted 1 | . . 1 . Combat Hostiles 1 | . . 1 . Parts Melted 8 | . 1 2 5 Heat Transferred 3441 | . 1332 851 1258 Parts Sabotaged . | . . . . Parts Stolen . | . . . . Parts Stripped . | . . . . Power Chain Reactions . | . . . . Alert | -11 -10 -9 -8 ------- Run | Yrd Mat Mat Mat Maximum Alert Level 1 | . 1 . . Low Security (%) 96 | 100 90 100 100 Level 1 3 | . 9 . . Level 2 . | . . . . Level 3 . | . . . . Level 4 . | . . . . Level 5 . | . . . . High Security . | . . . . Max Security . | . . . . Peak Influence 213 | . 213 152 130 Initial 81 | . . 81 34 Average 85 | . 100 96 59 Influence Increases 630 | . 303 151 176 Destroy 0b10 Robot/C 460 | . 200 120 140 Destroy 0b10 Robot/NC 10 | . 10 . . Destroy Leader 90 | . 40 30 20 Disable Machine 15 | . 15 . . Destroy Structure 40 | . 38 1 1 Lose Combat Pursuer 15 | . . . 15 Influence Decreases 530 | . 110 262 158 Entered New Map 160 | . . 112 48 Time Decay 330 | . 110 150 70 Lost Part 40 | . . . 40 Squads Dispatched 2 | . 1 1 . Investigation . | . . . . Extermination . | . . . . Reinforcement 2 | . 1 1 . Assault . | . . . . Garrison . | . . . . Intercept . | . . . . Searches Triggered . | . . . . Construction Impeded . | . . . . Haulers Reinforced . | . . . . Active Scanning Responses . | . . . . Cargo Convoy Interrupts . | . . . . Stealth | -11 -10 -9 -8 --------- Run | Yrd Mat Mat Mat Distress Signals 2 | . 1 . 1 Communications Jammed . | . . . . Distress Signals . | . . . . Times Spotted 36 | . 14 9 13 Peak Tracking Total 7 | . 7 4 5 Tactical Retreats 1 | . . . 1 Traps | -11 -10 -9 -8 ------- Run | Yrd Mat Mat Mat Traps Triggered . | . . . . Indirectly . | . . . . Trap Hack Attempts . | . . . . Triggered . | . . . . Disarmed . | . . . . Reprogrammed . | . . . . Reused . | . . . . Traps Extracted . | . . . . Installed . | . . . . Triggered . | . . . . Machines | -11 -10 -9 -8 ---------- Run | Yrd Mat Mat Mat Machines Disabled 1 | . 1 . . Max in Single Turn 1 | . 1 . . Machines Repaired . | . . . . Machines Dismantled . | . . . . Machines Sabotaged . | . . . . Overloaded Fab Kills . | . . . . Hacking | -11 -10 -9 -8 --------- Run | Yrd Mat Mat Mat Machines Accessed . | . . . . Terminals . | . . . . Fabricators . | . . . . Repair Stations . | . . . . Recycling Units . | . . . . Scanalyzers . | . . . . Garrison Access . | . . . . Total Hacks . | . . . . Successful . | . . . . Failed . | . . . . Catastrophic . | . . . . Database Lockouts . | . . . . Manual . | . . . . Terminals . | . . . . Fabricators . | . . . . Repair Stations . | . . . . Recycling Units . | . . . . Scanalyzers . | . . . . Garrison Access . | . . . . Terminal Hacks . | . . . . Fabricator Hacks . | . . . . Repair Station Hacks . | . . . . Recycling Unit Hacks . | . . . . Scanalyzer . | . . . . Garrison Access Hacks . | . . . . Unauthorized Hacks . | . . . . Terminals . | . . . . Fabricators . | . . . . Repair Stations . | . . . . Recycling Units . | . . . . Scanalyzers . | . . . . Garrison Access . | . . . . Data Cores Recovered . | . . . . Used . | . . . . Hacking Detections . | . . . . Full Trace Events . | . . . . Feedback Events . | . . . . Feedback Blocked . | . . . . Robot Schematics Acquired . | . . . . Robots Built . | . . . . Authchips . | . . . . Time . | . . . . Total Robot Build Rating . | . . . . Part Schematics Acquired . | . . . . Parts Built . | . . . . Authchips . | . . . . Time . | . . . . Total Part Build Rating . | . . . . Parts Repaired . | . . . . Time . | . . . . Parts Recycled . | . . . . Recycled Matter . | . . . . Retrieved Matter . | . . . . Retrieved Components . | . . . . Parts Scanalyzed . | . . . . Part Schematics Acquired . | . . . . Parts Damaged . | . . . . Bothacking | -11 -10 -9 -8 ------------ Run | Yrd Mat Mat Mat Used RIF Installer . | . . . . Robots Hacked . | . . . . Non-combat . | . . . . Combat . | . . . . Robot Hacks Applied . | . . . . Relay Couplers Released . | . . . . Fabnet Peak Effective % . | . . . . Robots Rewired . | . . . . Allies Hacked . | . . . . Hacks Repelled . | . . . . Allies | -11 -10 -9 -8 -------- Run | Yrd Mat Mat Mat Total Allies . | . . . . Largest Group . | . . . . Highest-Rated Group . | . . . . Highest-Rated Ally . | . . . . Total Orders . | . . . . Ally Attacks . | . . . . Total Damage . | . . . . Kills . | . . . . Allies Corrupted . | . . . . Allies Melted . | . . . . Intel | -11 -10 -9 -8 ------- Run | Yrd Mat Mat Mat Active Infowar (turns) . | . . . . Robot Analysis Total . | . . . . Derelict Logs Recovered . | . . . . Drone Launches . | . . . . Drone Recoveries . | . . . . Exploration | -11 -10 -9 -8 ------------- Run | Yrd Mat Mat Mat Turns Passed 855 | 55 335 311 154 Spaces Moved 429 | 36 153 172 68 Core 15 | 15 . . . Treads 153 | 21 132 . . Legs 261 | . 21 172 68 Wheels . | . . . . Hover . | . . . . Flight . | . . . . Fastest Speed 50 | 50 120 120 120 Average Speed 134 | 114 155 120 132 Slowest Speed 190 | 160 190 120 190 Overloaded Moves . | . . . . Propulsion Burnouts . | . . . . Robots Hopped . | . . . . Potential Cave-ins . | . . . . Cave-ins Triggered . | . . . . Exploration Rate (%) 17 | 4 34 22 10 Regions Visited 3 Branch Regions . Pre-discovered Areas . | . . . . Known Exits Taken . | . . . . Unknown Exits Taken 3 | 1 1 1 . Scrap Searched . | . . . . Spaces Dug . | . . . . Terrain Destroyed 44 | . 44 . . Melee . | . . . . Projectile . | . . . . AOE 44 | . 44 . . Terrain Rammed . | . . . . Walls Destroyed . | . . . . Machines Disabled . | . . . . Actions | -11 -10 -9 -8 --------- Run | Yrd Mat Mat Mat Total 567 | 49 195 229 94 Wait 14 | 1 1 11 1 Move 426 | 35 152 171 68 Hop . | . . . . Pick Up 19 | 6 6 7 . Fast Attach 1 | 1 . . . Attach 9 | 5 2 2 . Detach . | . . . . Swap 15 | 1 4 9 1 Drop 7 | . 2 4 1 Fire 68 | . 26 22 20 Melee . | . . . . Ram . | . . . . Kick 6 | . . 3 3 Crush 2 | . 2 . . Escape Stasis . | . . . . Rewire . | . . . . Trap . | . . . . Miscellaneous . | . . . . Route ------- -11/Scrapyard -10/Materials -9/Materials -8/Materials History --------- Turn | Location | Event 6 | -11/Scrapyard | Discovered new exit (range 15) 56 | -11/Scrapyard | Entered Materials 310 | -10/Materials | Build established: Mutant 335 | -10/Materials | Core integrity fell below 50% 355 | -10/Materials | Discovered new exit (range 16) 391 | -10/Materials | Entered another Materials area 391 | -9/Materials | Evolved 2 slots: Propulsion x1, Utility x1 663 | -9/Materials | Discovered new exit (range 12) 702 | -9/Materials | Entered another Materials area 702 | -8/Materials | Evolved 2 slots: Propulsion x1, Utility x1 856 | -8/Materials | Self-destructed Last Messages --------------- Heat Sink melted. Imp. Ion Engine melted. Heat Sink melted. Y-45 Defender destroyed. Overheating: Energy bleed (-53). Dropped Lgt. Armor Plating. Acquired 10 matter. Kicked U-05 Engineer. K-01 Serf collects debris. R-06 Scavenger collects Lgt. Treads. R-06 Scavenger collects Lgt. Ion Engine. R-06 Scavenger collects Flight Unit. R-06 Scavenger collects Lgt. Ion Engine. Kicked M-13 Machinist. C-30 ARC bursts open, deploying its payload. S-10 Pest unfolds itself. Med. Laser destroyed. S-10 Pest destroyed. Aluminum Leg destroyed. Ion Engine destroyed. Map ----- +----------------------------------------------------+ | ?????????????????????????????????????????????????? | | ?????????????????????????????????????????????????? | | ?????????????????????????????????????????????????? | | ?????????????????????????????????????????????????? | | ?????????????????????????????????????????????????? | | ?????????????????????????????????????????????????? | | ?????????????????????????????????????????????????? | | ?????????????????????????????????????????????????? | | ?????????????????????????????????????????????????? | | ?????????????????????????????????????????????????? | | ?????????????????????????????????????????????????? | | ?????????????????????????????????????????????????? | | ?????????????????????????????????????????????????? | | ?????????????????????????????????????????????????? | | ?????????????????????????????????????????????????? | | ?????????????????????"???????????????????????????? | | ?????????????????????""??????????????????????????? | | ??????????????????????"??????????????????????????? | | ?????????????????????? ??????????????????????????? | | ????????????#######???#+?????????????????????????? | | ????????????# ??# ?????????????????????????? | | ????????????# !! ?# ################?????????? | | ????????????# !! # s ????????? | | ?????????????????! + = " ^????????? | | ??????????????????????# ss "%" ????????? | | ??????????????????????###@########???????????????? | | ????????????????????????# #?####### ???????????? | | ????????????????????????#%#? # ???????????? | | ????????????????????????#[#! """ # ???????????? | | ???????????????########## # """ # #??????????? | | ???????????????#=%*!==% r + """ # #??????????? | | ???????????????# ########%# # #??????????? | | ???????????????# #??????# ######### ##?????????? | | ??????????######+###????# #??????# #?????????? | | ??????????# % #????# #??????# ##????????? | | ??????????# * #????# #??????# " ?????????? | | ??????????# #????# #??????# #?????????? | | ??????????# ] #????# #??????# #?????????? | | ????????? / #?####+######### #?#########? | | ???????? # #?# # # #? | | ???????# # !#?# # # #? | | ???????# ?# #?# + + #? | | ??????? ?# #?# # # #? | | ??????##??####+#####?# # # #? | | ?????????????????????############## #? ]] #? | | ??????????????????????????????????#####? ]] #? | | ????????????????????????????????????????? ] #? | | ?????????????????????????????????????????########? | | ?????????????????????????????????????????????????? | | ?????????????????????????????????????????????????? | +----------------------------------------------------+ Best States ------------- Heat Dissipation 31 Energy Generation 14 Energy Capacity 280 Matter Stores 350 Matter Capacity 350 Sight Range 16 Terrain Scan Density 10 Additional Mass Support 6 Armor Coverage 150 Evasion (%) 55 Recoil Reduction 2 Item Schematics ----------------- None Robot Schematics ------------------ None Fabricated ------------ Nothing Repaired ---------- Nothing Alien Tech Used ----------------- None Achievements -------------- None Challenges ------------ None Game ------ Seed OmegaFlightRigger Manual? 0 Play Time 00:10:07 Cumulative 43.5 hours Start 2025.08.31 @ 00:43:34 End 2025.08.31 @ 00:54:30 Sessions 1 Manual Loads 0 Difficulty Rogue Special Mode None Game No. 26 Rogue 6 Adventurer 1 Explorer 19 Win Type - Total 5 Types 3/0/0/2/0/0/0/0/0/0 Lore% 10 Gallery% 33 Achievement% 35 Wizard Run 0 Options --------- Layout 1 ASCII 0 Keyboard 0 Movement Mouse Keybinds 0 Fullscreen 1 Font 24/Smallcaps Map View 50x35 Zoom Use 0% Tactical HUD 0 Map Filters NONE Filters NONE Steam 1 RUN: edcd40e8-ddc8-4faa-9658-1e5b531aac86